Cogmind - Beta 14 *** ADVENTURER MODE // 2024.12.17 @ 19:47:08 Player: Murdock2099 Result: Destroyed by G-47 Trooper with Particle Gun Performance ------------- Evolutions (3) 1500 Regions Visited (6) 1200 Robots Destroyed (29) 145 Value Destroyed (908) 908 Prototype IDs (2) 40 Alien Tech Used (0) 0 Bonus (0) 0 TOTAL SCORE: 3793 Bonus ------- None Cogmind --------- Core Integrity 0/700 Matter 279/300 Energy 100/100 System Corruption 12% Temperature Cool (9) Movement Treading (160) Location -7/Factory Parts ------- > --- POWER (2) -------- (None) > --- PROPULSION (4) --- Medium Treads > --- UTILITY (3) ------ (None) > --- WEAPON (4) ------- (None) > --- INVENTORY (5) ---- (None) Peak State ------------ > --- POWER ------------ Ion Engine Light Nuclear Core > --- PROPULSION ------- Aluminum Leg Aluminum Leg > --- UTILITY ---------- ECM Suite Light Armor Plating > --- WEAPON ----------- Shotgun Shotgun Improved Datajack > --- INVENTORY -------- (None) [Rating: 15] Favorites ----------- Power Ion Engine Engine Ion Engine Power Core Light Nuclear Core Propulsion Aluminum Leg Treads Medium Treads Leg Aluminum Leg Wheel Wheel Utility Light Armor Plating Device ECM Suite Storage Small Storage Unit Protection Light Armor Plating Weapon Shotgun Energy Gun Medium Laser Ballistic Gun Shotgun Launcher Grenade Launcher Special Melee Weapon Datajack Build | -11 -10 -10 -9 -9 -8 -7 ------- Run | Yrd Mat Min Mat Min Mat Fac Slots Evolved 6 | . . . 2 . 2 2 Power 1 | . . . 1 . . . Propulsion 2 | . . . . . 2 . Utility 1 | . . . . . . 1 Weapon 2 | . . . 1 . . 1 Parts Attached 31 | 8 6 4 4 4 2 3 Power 5 | 1 1 1 1 1 . . Engine 4 | 1 1 1 1 . . . Core 1 | . . . . 1 . . Reactor . | . . . . . . . Propulsion 13 | 4 2 2 . 2 . 3 Treads 1 | . . . . . . 1 Leg 6 | 2 2 . . 2 . . Wheel 6 | 2 . 2 . . . 2 Hover . | . . . . . . . Flight . | . . . . . . . Utility 3 | 1 . . 1 . 1 . Device 1 | . . . . . 1 . Storage 1 | 1 . . . . . . Processor . | . . . . . . . Hackware . | . . . . . . . Protection 1 | . . . 1 . . . Artifact . | . . . . . . . Weapon 10 | 2 3 1 2 1 1 . Energy Gun 2 | 2 . . . . . . Energy Cannon . | . . . . . . . Ballistic Gun 3 | . 1 . 2 . . . Ballistic Cannon . | . . . . . . . Launcher 1 | . 1 . . . . . Special Weapon . | . . . . . . . Impact Weapon . | . . . . . . . Slashing Weapon . | . . . . . . . Piercing Weapon . | . . . . . . . Special Melee Weapon 4 | . 1 1 . 1 1 . Unidentified Prototypes . | . . . . . . . Parts Lost 15 | . 4 . 3 . . 8 Power 3 | . 1 . 1 . . 1 Propulsion 6 | . 2 . 1 . . 3 Utility 2 | . . . . . . 2 Weapon 4 | . 1 . 1 . . 2 Highest Loss Streak 6 | . 4 . 1 . . 6 To Critical Strikes . | . . . . . . . Average Slot Usage (%) 71 | . 74 73 70 95 80 37 Engine 8 | . 13 14 6 11 9 3 Core 5 | . . . . 9 9 2 Leg 14 | . 24 . . 20 18 8 Wheel 3 | . . 28 20 1 . 2 Device 2 | . . . . . 7 3 Storage 6 | . 14 14 11 11 1 . Protection 6 | . . . 5 11 9 3 Ballistic Gun 15 | . 7 14 26 22 18 7 Special Melee Weapon 6 | . 5 2 1 9 9 2 Peak Build Rating 15 | 6 6 6 9 13 15 15 Average Rating 9 | 4 5 5 8 12 13 7 On Entrance 7 | . 6 2 6 8 13 15 Naked Turns 54 | . . . . . . 54 Heaviest Build 25 | 14 14 10 19 25 25 22 Greatest Support 28 | 20 20 20 20 20 20 28 Greatest Overweight (x) 3 | . 3 . 1 1 1 1 Average Overweight (x) . | . . . . . 1 . Largest Inventory Capacity 8 | 8 8 8 8 8 8 5 Average Capacity 6 | 6 8 8 8 8 5 5 Most Carried 6 | 5 6 3 2 3 1 2 Average Carried . | 2 3 . . . . . Final Capacity 8 | 8 8 8 8 8 5 5 Final Carried 4 | 3 4 . 1 . . . Class Distribution -------------------- 60% | Scavenger-Mutant 35% | Mutant 3% | Gunner Dominant Class ---------------- Mutant | -10/Materials Mutant | -10/Mines Mutant | -9/Materials Scavenger-Mutant | -9/Mines Scavenger-Mutant | -8/Materials Scavenger-Mutant | -7/Factory Resources | -11 -10 -10 -9 -9 -8 -7 ----------- Run | Yrd Mat Min Mat Min Mat Fac Matter Collected 736 | 207 76 34 223 64 132 . Remotely . | . . . . . . . Salvage Created 935 | . 244 34 322 88 201 46 Parts 57 | . 17 3 16 4 13 4 Haulers Intercepted . | . . . . . . . Recyclers Shooed . | . . . . . . . Parts Field Recycled . | . . . . . . . Retrieved Matter . | . . . . . . . Parts Self-Destructed . | . . . . . . . Prevented . | . . . . . . . Kills | -11 -10 -10 -9 -9 -8 -7 ------- Run | Yrd Mat Min Mat Min Mat Fac Combat Hostiles Destroyed 27 | . 9 1 8 2 6 1 Guns 21 | . 3 1 8 2 6 1 AOE 6 | . 6 . . . . . Classes Destroyed 6 | . 3 . 2 . 1 . Watcher 2 | . 1 . . . 1 . Swarmer 6 | . 3 . . . 3 . Grunt 15 | . 6 1 5 2 . 1 Brawler 1 | . . . 1 . . . Sentry 4 | . . . 2 . 2 . Hunter 1 | . . . . . 1 . Best Kill Streak 7 | . 7 1 7 2 3 1 Combat Bots Only 7 | . 6 1 7 2 3 1 Max Kills in Single Turn 4 | . 4 1 1 2 2 1 Gunslinging . | . . . . . . . Exploded 3 | . 3 . . . . . Melee . | . . . . . . . Uniques/NPCs Destroyed . | . . . . . . . Combat | -11 -10 -10 -9 -9 -8 -7 -------- Run | Yrd Mat Min Mat Min Mat Fac Hostile Shots Fired 314 | . 82 17 31 4 37 143 Missed 96 | . 30 4 6 1 17 38 Damage Taken 2372 | . 426 137 249 34 208 1318 Core 931 | . 120 18 40 13 40 700 Absorbed by Shields . | . . . . . . . Ignored by Resistances 699 | . 139 39 75 10 60 376 Core Remaining (%) 80 | 100 . 44 . 86 92 . Volleys Fired 58 | . 13 8 14 3 14 6 Largest 3 | . 2 1 3 2 2 2 Hottest 100 | . 100 20 66 46 46 46 Shots Fired 101 | . 16 8 35 6 28 8 Gun 99 | . 14 8 35 6 28 8 Cannon . | . . . . . . . Launcher 2 | . 2 . . . . . Special . | . . . . . . . Kinetic 97 | . 12 8 35 6 28 8 Thermal 2 | . 2 . . . . . Explosive 2 | . 2 . . . . . Electromagnetic . | . . . . . . . Robot Hit Streak 11 | . 7 7 11 8 11 8 Robot Miss Streak 4 | . 1 1 2 2 4 1 Penetration Max . | . . . . . . . Secondary Targets 1 | . . . 1 . . . Max Gunslinging Chain 1 | . . . 1 . . . Shots Hit Robots 85 | . 15 8 24 7 24 7 Core Hits 57 | . 13 2 17 5 16 4 Critical Kills 1 | . . . . . . 1 Critical Parts Destroyed . | . . . . . . . Critical Strikes 1 | . . . . . . 1 Destroy 1 | . . . . . . 1 Melee Attacks 11 | . 3 1 . 3 4 . Impact . | . . . . . . . Slashing . | . . . . . . . Piercing . | . . . . . . . Sneak Attacks 7 | . 2 . . 3 2 . Combat Hostiles . | . . . . . . . Follow-up Attacks . | . . . . . . . Damage Inflicted 1408 | . 443 53 379 83 309 141 Guns 1026 | . 85 53 373 83 309 123 Cannons . | . . . . . . . Explosions 358 | . 358 . . . . . Melee . | . . . . . . . Ramming 24 | . . . 6 . . 18 Kinetic 1026 | . 85 53 373 83 309 123 Thermal . | . . . . . . . Explosive 358 | . 358 . . . . . Electromagnetic . | . . . . . . . Impact . | . . . . . . . Slashing . | . . . . . . . Piercing . | . . . . . . . Highest Corruption 12 | . . . . . . 12 Average Corruption 6 | . . . . . . 6 Corruption Purged . | . . . . . . . Corruption Blocked . | . . . . . . . Effects 4 | . . . . . . 4 Message Errors 2 | . . . . . . 2 Matter Fused 1 | . . . . . . 1 Heat Flow Errors 1 | . . . . . . 1 Overload Shots . | . . . . . . . Overflow Damage 4 | . 4 . . . . . Projectiles . | . . . . . . . Explosions 4 | . 4 . . . . . Melee . | . . . . . . . Knockbacks . | . . . . . . . Impact . | . . . . . . . Kinetic . | . . . . . . . Secondary . | . . . . . . . Self-Inflicted Damage 63 | . 52 . 3 . . 8 Shots 2 | . 2 . . . . . Rammed 5 | . . . 1 . . 4 Targets Rammed 5 | . . . 1 . . 4 Kicked . | . . . . . . . Crushed . | . . . . . . . Highest Temperature 174 | . 39 24 15 4 8 174 Average Temperature 26 | . 14 15 5 4 7 77 Received Heat Transfer 1050 | . 174 108 123 24 54 567 Siege Activations . | . . . . . . . Robots Corrupted . | . . . . . . . Combat Hostiles . | . . . . . . . Parts Fried . | . . . . . . . Impact Corruptions . | . . . . . . . Robots Melted . | . . . . . . . Combat Hostiles . | . . . . . . . Parts Melted . | . . . . . . . Heat Transferred . | . . . . . . . Parts Sabotaged . | . . . . . . . Parts Stolen . | . . . . . . . Parts Stripped . | . . . . . . . Power Chain Reactions . | . . . . . . . Alert | -11 -10 -10 -9 -9 -8 -7 ------- Run | Yrd Mat Min Mat Min Mat Fac Peak Influence 232 | . 232 93 230 125 172 90 Initial 75 | . . 73 30 75 . 27 Average 71 | . 55 76 110 108 77 29 Maximum Alert Level 1 | . 1 . 1 . . . Low Security (%) 97 | 100 96 100 79 100 100 100 Level 1 2 | . 3 . 20 . . . Level 2 . | . . . . . . . Level 3 . | . . . . . . . Level 4 . | . . . . . . . Level 5 . | . . . . . . . High Security . | . . . . . . . Max Security . | . . . . . . . Squads Dispatched 6 | . 3 . 1 . . 2 Investigation 5 | . 3 . 1 . . 1 Extermination 1 | . . . . . . 1 Reinforcement . | . . . . . . . Assault . | . . . . . . . Garrison . | . . . . . . . Intercept . | . . . . . . . Searches Triggered . | . . . . . . . Construction Impeded . | . . . . . . . Haulers Reinforced . | . . . . . . . Active Scanning Responses . | . . . . . . . Cargo Convoy Interrupts . | . . . . . . . Stealth | -11 -10 -10 -9 -9 -8 -7 --------- Run | Yrd Mat Min Mat Min Mat Fac Distress Signals 2 | . 1 . . . . 1 Communications Jammed . | . . . . . . . Distress Signals . | . . . . . . . Times Spotted 60 | . 15 4 10 2 13 16 Peak Tracking Total 10 | . 10 4 3 2 3 8 Tactical Retreats 4 | . . . . . . 4 Traps | -11 -10 -10 -9 -9 -8 -7 ------- Run | Yrd Mat Min Mat Min Mat Fac Traps Triggered 4 | . 4 . . . . . Indirectly . | . . . . . . . Trap Hack Attempts . | . . . . . . . Triggered . | . . . . . . . Disarmed 4 | . 4 . . . . . Reprogrammed . | . . . . . . . Reused . | . . . . . . . Traps Extracted . | . . . . . . . Installed . | . . . . . . . Triggered . | . . . . . . . Machines | -11 -10 -10 -9 -9 -8 -7 ---------- Run | Yrd Mat Min Mat Min Mat Fac Machines Disabled . | . . . . . . . Max in Single Turn . | . . . . . . . Machines Repaired . | . . . . . . . Machines Dismantled . | . . . . . . . Machines Sabotaged . | . . . . . . . Overloaded Fab Kills . | . . . . . . . Hacking | -11 -10 -10 -9 -9 -8 -7 --------- Run | Yrd Mat Min Mat Min Mat Fac Machines Accessed 12 | . 3 . 4 . 2 3 Terminals 9 | . 3 . 4 . 1 1 Fabricators 1 | . . . . . . 1 Repair Stations . | . . . . . . . Recycling Units 2 | . . . . . 1 1 Scanalyzers . | . . . . . . . Garrison Access . | . . . . . . . Total Hacks 38 | . 12 . 13 . 7 6 Successful 28 | . 8 . 10 . 6 4 Failed 10 | . 4 . 3 . 1 2 Catastrophic 1 | . . . . . . 1 Database Lockouts . | . . . . . . . Manual . | . . . . . . . Terminals 29 | . 12 . 13 . 3 1 Fabricators 4 | . . . . . . 4 Repair Stations . | . . . . . . . Recycling Units 5 | . . . . . 4 1 Scanalyzers . | . . . . . . . Garrison Access . | . . . . . . . Terminal Hacks 22 | . 8 . 10 . 3 1 Record 9 | . 1 . 6 . 2 . Prototype ID Bank 1 | . 1 . . . . . Alert Level 4 | . 2 . 2 . . . Locate Traps 3 | . 1 . 1 . . 1 Disarm Traps 1 | . 1 . . . . . Dispatch Records 1 | . 1 . . . . . Investigation Status 1 | . . . 1 . . . Reinforcement Status 1 | . . . . . 1 . Zone Layout 1 | . 1 . . . . . Fabricator Hacks 2 | . . . . . . 2 Network Status 2 | . . . . . . 2 Repair Station Hacks . | . . . . . . . Recycling Unit Hacks 4 | . . . . . 3 1 Process 1 | . . . . . 1 . Report Inventory 2 | . . . . . 1 1 Retrieve Matter 1 | . . . . . 1 . Scanalyzer . | . . . . . . . Garrison Access Hacks . | . . . . . . . Unauthorized Hacks . | . . . . . . . Terminals . | . . . . . . . Fabricators . | . . . . . . . Repair Stations . | . . . . . . . Recycling Units . | . . . . . . . Scanalyzers . | . . . . . . . Garrison Access . | . . . . . . . Data Cores Recovered . | . . . . . . . Used . | . . . . . . . Hacking Detections 9 | . 2 . 4 . 1 2 Full Trace Events 4 | . 1 . 2 . . 1 Feedback Events . | . . . . . . . Feedback Blocked . | . . . . . . . Robot Schematics Acquired . | . . . . . . . Robots Built . | . . . . . . . Authchips . | . . . . . . . Time . | . . . . . . . Total Robot Build Rating . | . . . . . . . Part Schematics Acquired . | . . . . . . . Parts Built . | . . . . . . . Authchips . | . . . . . . . Time . | . . . . . . . Total Part Build Rating . | . . . . . . . Parts Repaired . | . . . . . . . Time . | . . . . . . . Parts Recycled . | . . . . . . . Recycled Matter . | . . . . . . . Retrieved Matter . | . . . . . . . Retrieved Components . | . . . . . . . Parts Scanalyzed . | . . . . . . . Part Schematics Acquired . | . . . . . . . Parts Damaged . | . . . . . . . Bothacking | -11 -10 -10 -9 -9 -8 -7 ------------ Run | Yrd Mat Min Mat Min Mat Fac Used RIF Installer . | . . . . . . . Robots Hacked 5 | . 2 1 . 1 1 . Non-combat 3 | . 1 . . 1 1 . Combat 2 | . 1 1 . . . . Robot Hacks Applied 6 | . 3 1 . 1 1 . parse_system 4 | . 2 1 . . 1 . no_distress 1 | . . . . 1 . . find_station 1 | . 1 . . . . . Relay Couplers Released . | . . . . . . . Fabnet Peak Effective % . | . . . . . . . Robots Rewired . | . . . . . . . Allies Hacked . | . . . . . . . Hacks Repelled . | . . . . . . . Allies | -11 -10 -10 -9 -9 -8 -7 -------- Run | Yrd Mat Min Mat Min Mat Fac Total Allies . | . . . . . . . Largest Group . | . . . . . . . Highest-Rated Group . | . . . . . . . Highest-Rated Ally . | . . . . . . . Total Orders . | . . . . . . . Ally Attacks . | . . . . . . . Total Damage . | . . . . . . . Kills . | . . . . . . . Allies Corrupted . | . . . . . . . Allies Melted . | . . . . . . . Intel | -11 -10 -10 -9 -9 -8 -7 ------- Run | Yrd Mat Min Mat Min Mat Fac Robot Analysis Total . | . . . . . . . Derelict Logs Recovered 3 | . . 1 . 2 . . Drone Launches . | . . . . . . . Drone Recoveries . | . . . . . . . Exploration | -11 -10 -10 -9 -9 -8 -7 ------------- Run | Yrd Mat Min Mat Min Mat Fac Turns Passed 1963 | 68 216 53 184 441 538 463 Spaces Moved 1284 | 56 141 40 162 247 256 382 Core 119 | 12 12 . . . . 95 Treads 20 | . . . . . . 20 Legs 783 | 25 129 . . 211 256 162 Wheels 362 | 19 . 40 162 36 . 105 Hover . | . . . . . . . Flight . | . . . . . . . Fastest Speed 50 | 50 100 80 80 95 190 50 Average Speed 134 | 91 120 80 82 169 190 114 Slowest Speed 200 | 120 200 80 95 190 190 190 Overloaded Moves . | . . . . . . . Propulsion Burnouts . | . . . . . . . Robots Hopped . | . . . . . . . Cave-ins Triggered . | . . . . . . . Exploration Rate (%) 21 | 3 20 13 22 59 20 14 Regions Visited 6 Branch Regions 2 Pre-discovered Areas 3 | . . 1 . 2 . . Known Exits Taken . | . . . . . . . Unknown Exits Taken 6 | 1 1 1 1 1 1 . Scrap Searched 1 | . . . . 1 . . Spaces Dug . | . . . . . . . Terrain Destroyed 15 | . 15 . . . . . Melee . | . . . . . . . Projectile . | . . . . . . . AOE 15 | . 15 . . . . . Terrain Rammed . | . . . . . . . Walls Destroyed . | . . . . . . . Machines Disabled . | . . . . . . . Actions | -11 -10 -10 -9 -9 -8 -7 --------- Run | Yrd Mat Min Mat Min Mat Fac Total 1425 | 73 171 53 185 263 279 401 Wait 5 | . 1 1 . 3 . . Move 1278 | 55 140 39 161 246 255 382 Hop . | . . . . . . . Pick Up 28 | 9 7 . 4 3 2 3 Fast Attach . | . . . . . . . Attach 28 | 7 5 4 4 3 2 3 Detach 2 | 1 . . 1 . . . Swap 3 | 1 1 . . 1 . . Drop 7 | . 1 . . 1 2 3 Fire 58 | . 13 8 14 3 14 6 Melee 11 | . 3 1 . 3 4 . Ram 5 | . . . 1 . . 4 Kick . | . . . . . . . Crush . | . . . . . . . Escape Stasis . | . . . . . . . Rewire . | . . . . . . . Trap . | . . . . . . . Miscellaneous . | . . . . . . . Route ------- -11/Scrapyard -10/Materials (discovered 2 exits: [*Min x2]) -10/Mines (discovered 2 exits: *Mat x2) -9/Materials -9/Mines -8/Materials -7/Factory History --------- Turn | Location | Event 23 | -11/Scrapyard | Discovered new exit (range 16) 69 | -11/Scrapyard | Entered Materials 109 | -10/Materials | Discovered new exit (range 19) 247 | -10/Materials | Discovered new exit (range 15) 285 | -10/Materials | Entered Mines 308 | -10/Mines | Build established: Mutant 311 | -10/Mines | Lost 4 parts (1p2n1w) 311 | -10/Mines | Learned location of Storage (-7) 311 | -10/Mines | Discovered new exit (range 7) 311 | -10/Mines | Discovered new exit (range 9) 320 | -10/Mines | Core integrity fell below 50% 338 | -10/Mines | Entered Materials 338 | -9/Materials | Evolved 2 slots: Power x1, Weapon x1 496 | -9/Materials | Destroyed 7 combat bots 507 | -9/Materials | Discovered new exit (range 16) 522 | -9/Materials | Entered Mines 525 | -9/Mines | Met a Derelict bent on vengeance 771 | -9/Mines | Learned location of Zion (-6) 855 | -9/Mines | Build established: Scavenger-Mutant 932 | -9/Mines | Discovered new exit (range 14) 963 | -9/Mines | Entered Materials 963 | -8/Materials | Evolved 2 slots: Propulsion x2 1480 | -8/Materials | Discovered new exit (range 4) 1501 | -8/Materials | Entered Factory 1501 | -7/Factory | Evolved 2 slots: Utility x1, Weapon x1 1780 | -7/Factory | Lost 6 parts (1p1n2u2w) 1884 | -7/Factory | Core integrity fell below 50% 1946 | -7/Factory | Core integrity fell below 20% 1956 | -7/Factory | System corruption reached 10% 1964 | -7/Factory | Destroyed by G-47 Trooper with Particle Gun Last Messages --------------- Querying network status... 6 records found: (123,169) - Idle (8,102) - Idle (159,107) - Building: Imp. Core Shielding (158,171) - Loaded: Imp. Weapon Cycler (176,31) - Loaded: D-53 Grenadier (3,110) - Loaded: S-27 Virus >>Network(Status) Querying network status... 6 records found: (123,169) - Idle (8,102) - Idle (159,107) - Building: Imp. Core Shielding (158,171) - Loaded: Imp. Weapon Cycler (176,31) - Loaded: D-53 Grenadier (3,110) - Loaded: S-27 Virus ALERT: Suspicious activity at Fabricator F003. Dispatching Investigation squad. U &B8/6KFY#9>TMMSGI%AEVMT:#1KNDFU,=M2 Map ----- +----------------------------------------------------+ | ?????????????????????????????????????????????????? | | ?????????????????????????????????????????????????? | | ?????????????????????????????????????????????????? | | ?????????????????????????????????????????????????? | | ?????????????????????????????????????????????????? | | ?????????????????????????????????????????????????? | | ?????????????????????????????????????????????????? | | ?????????????????????????????????????????????????? | | ?????????????????????????????????????????????????? | | ?????????????????????????????????????????????????? | | ?????????????????????????????????????????????????? | | ?????????????????????????????????????????????????? | | ?????????????????????????????????????????????????? | | ??? ??? ???????????????????????????????????????? | | "?? ?"" ???????????????????????????????????????? | | ?? ???????????????????????????????????????? | | "?? #????????????"""""?????????????????????? | | """ #????????????""""""????????????????????? | | """ #????????????"""""""???????????????????? | | #?????????????"""""????????????????????? | | """ """ #????????????? ?????????????????????? | | """ """ #????????????? ?????????????????????? | | """ """ #????????????? ??????????????????????? | | ##+############;#############??????????? | | """ """ ????????? | | """ """ !@ ????????? | | """ """ ] ????????? | | g r ????????? | | g g p p ?????????? | | #####+######+##### "" "" ==###########+?????????? | | # # ""F"" ==#????????????????????? | | """" # # """ #????????????????????? | | "S"" # # #????????????????????? | | " "" # + #????????????????????? | | # ######^^ #????????????????????? | | ! # #????# #????????????????????? | | # #????? #????????????????????? | | # #????? #????????????????????? | | ##################????? #????????????????????? | | ??????????????????????? #????????????????????? | | ??????????????????????? #????????????????????? | | ?????????????????????????????????????????????????? | | ?????????????????????????????????????????????????? | | ?????????????????????????????????????????????????? | | ?????????????????????????????????????????????????? | | ?????????????????????????????????????????????????? | | ?????????????????????????????????????????????????? | | ?????????????????????????????????????????????????? | | ?????????????????????????????????????????????????? | | ?????????????????????????????????????????????????? | +----------------------------------------------------+ Best States ------------- Heat Dissipation 34 Energy Generation 19 Energy Capacity 310 Matter Stores 300 Matter Capacity 300 Sight Range 16 Terrain Scan Density 10 ECM Strength 1 Armor Coverage 150 Resistance: KI 20 Resistance: TH 20 Resistance: EX 20 Resistance: EM 20 Resistance: I 20 Resistance: S 20 Resistance: P 20 Evasion (%) 55 Recoil Reduction 1 Offensive Hacking 10 Item Schematics ----------------- None Robot Schematics ------------------ None Fabricated ------------ Nothing Alien Tech Used ----------------- None Achievements -------------- Let's See Who's Tougher Party Time Challenges ------------ None Game ------ Seed MyomerFlyingCharge Manual? 0 Play Time 00:21:40 Cumulative 2.7 hours Start 2024.12.17 @ 19:25:28 End 2024.12.17 @ 19:47:08 Sessions 1 Manual Loads 0 Difficulty Adventurer Special Mode None Game No. 12 Rogue 0 Adventurer 12 Explorer 0 Win Type - Total 0 Types 0/0/0/0/0/0/0/0/0 Lore% 3 Gallery% 7 Achievement% 8 Wizard Run 0 Options --------- Layout 1 ASCII 0 Keyboard 0 Movement Numpad Keybinds 0 Fullscreen 1 Font 24/Smallcaps Map View 50x35 Zoom Use 0% Tactical HUD 0 Map Filters NONE Filters NONE Steam 1 RUN: 2b531e67-bfb4-4cc0-b7c6-31aba4fe2c25